fUST/lending_fUST_20251219
["ID","MTS","AMOUNT","RATE_DAILY","PERIOD"]
[399163159,1766130656300,-500.0,0.00054794,120]
[399163160,1766130656309,-1789.97,0.00054794,120]
[399163161,1766130656318,-500.0,0.00054794,120]
[399163162,1766130656404,-500.0,0.00054794,120]
[399163163,1766130656420,-500.54254198,0.00054794,120]
[399163164,1766130656429,-500.0,0.00054794,120]
[399163165,1766130656439,-500.93135183,0.00054794,120]
[399163166,1766130656449,-500.0,0.00054794,120]
[399163167,1766130656458,-500.0,0.00054794,120]
[399163168,1766130656470,-500.0,0.00054794,120]
[399163169,1766130656480,-500.72702551,0.00054794,120]
[399163170,1766130656491,-501.71901687,0.00054794,120]
[399163171,1766130656502,-500.0,0.00054794,120]
[399163172,1766130656511,-504.36152953,0.00054794,120]
[399163173,1766130656520,-500.0,0.00054794,120]
[399163174,1766130656529,-500.0,0.00054794,120]
[399163175,1766130656538,-500.0,0.00054794,120]
[399163176,1766130656547,-504.34455268,0.00054794,120]
[399163177,1766130656556,-500.0,0.00054794,120]
[399163178,1766130656565,-500.0,0.00054794,120]
[399163179,1766130656574,-500.0,0.00054794,120]
[399163180,1766130656583,-512.97,0.00054794,120]
[399163181,1766130656592,-500.0,0.00054794,120]
[399163182,1766130656601,-500.0,0.00054794,120]
[399163183,1766130656610,-504.55217982,0.00054794,120]
[399163184,1766130656619,-500.0,0.00054794,120]
[399163185,1766130656628,-500.0,0.00054794,120]
[399163186,1766130656637,-500.0,0.00054794,120]
[399163187,1766130656650,-500.0,0.00054794,120]
[399163188,1766130656659,-500.0,0.00054794,120]
[399163189,1766130656668,-500.0,0.00054794,120]
[399163190,1766130656677,-500.0,0.00054794,120]
[399163191,1766130656687,-500.0,0.00054794,120]
[399163192,1766130656696,-321.64193238,0.00054794,120]
[399163193,1766130656705,-500.0,0.00054794,120]
[399163194,1766130656715,-501.10863926,0.00054794,120]
[399163195,1766130656724,-500.0,0.00054794,120]
[399163196,1766130656733,-500.0,0.00054794,120]
[399163197,1766130656742,-1954.53,0.00054794,120]
[399163198,1766130656751,-500.0,0.00054794,120]
[399163199,1766130656760,-511.67265914,0.00054794,120]
[399163200,1766130656770,-500.0,0.00054794,120]
[399163201,1766130656779,-500.0,0.00054794,120]
[399163202,1766130656788,-500.0,0.00054794,120]
[399163203,1766130656797,-503.64507487,0.00054794,120]
[399163204,1766130656806,-503.3225969,0.00054794,120]
[399163205,1766130656816,-500.0,0.00054794,120]
[399163206,1766130656825,-500.0,0.00054794,120]
[399163207,1766130656834,-500.0,0.00054794,120]
[399163208,1766130656843,-500.0,0.00054794,120]
[399163209,1766130656853,-500.0,0.00054794,120]
[399163210,1766130656862,-500.0,0.00054794,120]
[399163211,1766130656871,-501.89536566,0.00054794,120]
[399163212,1766130656880,-500.0,0.00054794,120]
[399163213,1766130656889,-502.97195009,0.00054794,120]
[399163214,1766130656899,-500.0,0.00054794,120]
[399163215,1766130656908,-500.0,0.00054794,120]
[399163216,1766130656917,-504.88691369,0.00054794,120]
[399163217,1766130656926,-503.6681605,0.00054794,120]
[399163218,1766130656936,-500.0,0.00054794,120]
[399163219,1766130656944,-500.0,0.00054794,120]
[399163220,1766130656954,-500.0,0.00054794,120]
[399163221,1766130656963,-1050.87,0.00054794,120]
[399163222,1766130656973,-3817.38,0.00054794,120]
[399163223,1766130656983,-500.0,0.00054794,120]
[399163224,1766130656992,-500.0,0.00054794,120]
[399163225,1766130657001,-500.0,0.00054794,120]
[399163226,1766130657012,-500.0,0.00054794,120]
[399163227,1766130657023,-501.88596303,0.00054794,120]
[399163228,1766130657032,-502.90032183,0.00054794,120]
[399163229,1766130657041,-500.0,0.00054794,120]
[399163230,1766130657050,-323.59122319,0.00054794,120]
[399163231,1766130657060,-500.0,0.00054794,120]
[399163232,1766130657069,-500.0,0.00054794,120]
[399163233,1766130657078,-500.0,0.00054794,120]
[399163234,1766130657087,-504.84201453,0.00054794,120]
[399163235,1766130657096,-500.0,0.00054794,30]
[399163236,1766130657105,-536.06996911,0.00054794,120]
[399163237,1766130657114,-500.0,0.00054794,120]
[399163238,1766130657123,-500.0,0.00054794,30]
[399163239,1766130657132,-500.0,0.00054794,120]
[399163240,1766130657142,-500.0,0.00054794,120]
[399163241,1766130657151,-1315.23,0.00054794,120]
[399163242,1766130657160,-500.0,0.00054794,120]
[399163243,1766130657168,-502.71418167,0.00054794,120]
[399163244,1766130657177,-500.0,0.00054794,120]
[399163245,1766130657187,-500.0,0.00054794,120]
[399163246,1766130657196,-500.0,0.00054794,120]
[399163247,1766130657205,-500.0,0.00054794,120]
[399163248,1766130657215,-500.0,0.00054794,14]
[399163249,1766130657225,-500.0,0.00054794,120]
[399163250,1766130657234,-500.0,0.00054794,120]
[399163251,1766130657243,-500.0,0.00054794,120]
[399163252,1766130657252,-500.0,0.00054794,120]
[399163253,1766130657261,-503.71872777,0.00054794,120]
[399163254,1766130657271,-500.0,0.00054794,120]
[399163255,1766130657280,-500.0,0.00054794,120]
[399163256,1766130657290,-504.93727205,0.00054794,120]
[399163257,1766130657299,-500.0,0.00054794,120]
[399163258,1766130657308,-501.12249131,0.00054794,120]
[399163259,1766130657317,-1071.88,0.00054794,120]
[399163260,1766130657327,-500.0,0.00054794,120]
[399163261,1766130657336,-500.0,0.00054794,120]
[399163262,1766130657345,-500.0,0.00054794,120]
[399163263,1766130657354,-500.0,0.00054794,120]
[399163264,1766130657363,-500.0,0.00054794,120]
[399163265,1766130657373,-500.0,0.00054794,120]
[399163266,1766130657381,-500.0,0.00054794,120]
[399163267,1766130657390,-500.0,0.00054794,120]
[399163268,1766130657399,-500.0,0.00054794,120]
[399163269,1766130657408,-500.0,0.00054794,120]
[399163270,1766130657417,-500.0,0.00054794,120]
[399163271,1766130657427,-503.38873815,0.00054794,120]
[399163272,1766130657437,-500.0,0.00054794,120]
[399163273,1766130657446,-500.0,0.00054794,120]
[399163274,1766130657455,-303.50185481,0.00054794,120]
[399163275,1766130657464,-500.0,0.00054794,120]
[399163276,1766130657473,-500.0,0.00054794,60]
[399163277,1766130657482,-500.0,0.00054794,120]
[399163278,1766130657491,-500.0,0.00054794,120]
[399163279,1766130657500,-504.61386593,0.00054794,120]
[399163280,1766130657509,-507.42780573,0.00054794,120]
[399163281,1766130657518,-500.0,0.00054794,120]
[399163282,1766130657528,-363.00181322,0.00054794,120]
[399163283,1766130657537,-500.0,0.00054794,120]
[399163284,1766130657546,-500.0,0.00054794,120]
[399163285,1766130657555,-500.29197475,0.00054794,120]
[399163286,1766130657564,-500.0,0.00054794,120]
[399163287,1766130657573,-500.0,0.00054794,120]
[399163288,1766130657582,-500.0,0.00054794,120]
[399163289,1766130657590,-505.52287717,0.00054794,120]
[399163290,1766130657599,-500.0,0.00054794,120]
[399163291,1766130657608,-500.0,0.00054794,120]
[399163292,1766130657617,-500.0,0.00054794,120]
[399163293,1766130657627,-500.0,0.00054794,120]
[399163294,1766130657635,-524.88,0.00054794,120]
[399163295,1766130657651,-500.0,0.00054794,120]
[399163296,1766130657660,-500.0,0.00054794,120]
[399163297,1766130657669,-500.0,0.00054794,120]
[399163298,1766130657679,-174.89522044,0.00054794,120]
[399163299,1766130657688,-696.02,0.00054794,120]
[399163300,1766130657697,-1278.98,0.00054794,120]
[399163301,1766130657706,-503.39067399,0.00054794,120]
[399163302,1766130657716,-848.2,0.00054794,120]
[399163303,1766130657724,-500.0,0.00054794,120]
[399163304,1766130657733,-682.7,0.00054794,120]
[399163305,1766130657742,-500.0,0.00054794,120]
[399163306,1766130657751,-500.0,0.00054794,120]
[399163307,1766130657761,-626.188882,0.00054794,120]
[399163308,1766130657770,-500.0,0.00054794,120]
[399163309,1766130657779,-500.0,0.00054794,120]
[399163310,1766130657788,-1176.57,0.00054794,120]
[399163311,1766130657796,-500.0,0.00054794,120]
[399163312,1766130657806,-502.04870507,0.00054794,120]
[399163313,1766130657814,-506.83470711,0.00054794,120]
[399163314,1766130657823,-500.0,0.00054794,120]
[399163315,1766130657833,-500.0,0.00054794,120]
[399163316,1766130657841,-500.0,0.00054794,120]
[399163317,1766130657853,-500.0,0.00054794,120]
[399163318,1766130657862,-160.873181,0.00054794,120]
[399163319,1766130657872,-500.0,0.00054794,120]
[399163320,1766130657884,-500.0,0.00054794,120]
[399163321,1766130657893,-500.0,0.00054794,120]
[399163322,1766130657902,-441.19922837,0.00054794,120]
[399163323,1766130657911,-170.20936,0.00054794,120]
[399163324,1766130657920,-295.49515053,0.00054794,120]
[399163325,1766130657929,-500.0,0.00054794,120]
[399163326,1766130657939,-504.08498828,0.00054794,120]
[399163327,1766130657948,-500.33173226,0.00054794,120]
[399163328,1766130657958,-500.0,0.00054794,120]
[399163329,1766130657967,-500.0,0.00054794,120]
[399163330,1766130657976,-500.0,0.00054794,120]
[399163331,1766130657985,-502.19338777,0.00054794,120]
[399163332,1766130657994,-504.90710635,0.00054794,120]
[399163333,1766130658004,-500.0,0.00054794,120]
[399163334,1766130658014,-501.15920489,0.00054794,120]
[399163335,1766130658023,-326.8392706,0.00054794,120]
[399163336,1766130658032,-500.0,0.00054794,120]
[399163337,1766130658041,-500.0,0.00054794,120]
[399163338,1766130658051,-500.39079812,0.00054794,120]
[399163339,1766130658060,-500.0,0.00054794,120]
[399163340,1766130658069,-1672.469074,0.00054794,120]
[399163341,1766130658079,-502.25363923,0.00054794,120]
[399163342,1766130658089,-500.0,0.00054794,120]
[399163343,1766130658099,-500.0,0.00054794,120]
[399163344,1766130658108,-628.56,0.00054794,120]
[399163345,1766130658117,-500.0,0.00054794,120]
[399163346,1766130658127,-500.0,0.00054794,120]
[399163347,1766130658137,-500.0,0.00054794,120]
[399163348,1766130658147,-500.0,0.00054794,120]
[399163349,1766130658156,-500.0,0.00054794,120]
[399163350,1766130658167,-500.0,0.00054794,120]
[399163351,1766130658176,-505.13889789,0.00054794,120]
[399163352,1766130658185,-1384.97,0.00054794,120]
[399163353,1766130658196,-500.0,0.00054794,120]
[399163354,1766130658207,-348.46794375,0.00054794,120]
[399163355,1766130658217,-504.20177165,0.00054794,120]
[399163356,1766130658226,-401.17723021,0.00054794,120]
[399163357,1766130658236,-500.0,0.00054794,120]
[399163358,1766130658245,-500.0,0.00054794,120]
[399163359,1766130658255,-503.85359724,0.00054794,120]
[399163360,1766130658265,-500.0,0.00054794,120]
[399163361,1766130658275,-500.0,0.00054794,120]
[399163362,1766130658284,-1052.14,0.00054794,120]
[399163363,1766130658293,-500.0,0.00054794,120]
[399163364,1766130658303,-157.63888975,0.00054794,120]
[399163365,1766130658312,-500.0,0.00054794,120]
[399163366,1766130658321,-500.0,0.00054794,120]
[399163367,1766130658413,-371.18375474,0.00054794,120]
[399163368,1766130658422,-500.0,0.00054794,120]
[399163369,1766130658431,-500.0,0.00054794,120]
[399163370,1766130658440,-500.0,0.00054794,120]
[399163371,1766130658449,-500.0,0.00054794,120]
[399163372,1766130658458,-500.0,0.00054794,120]
[399163373,1766130658467,-500.0,0.00054794,120]
[399163374,1766130658477,-500.0,0.00054794,120]
[399163375,1766130658486,-500.0,0.00054794,120]
[399163376,1766130658495,-505.33851247,0.00054794,120]
[399163377,1766130658504,-500.0,0.00054794,120]
[399163378,1766130658514,-500.0,0.00054794,120]
[399163379,1766130658523,-500.0,0.00054794,120]
[399163380,1766130658531,-500.0,0.00054794,120]
[399163381,1766130658542,-500.0,0.00054794,120]
[399163382,1766130658552,-247.05728453,0.00054794,120]
[399163383,1766130658561,-500.0,0.00054794,120]
[399163384,1766130658570,-500.0,0.00054794,120]
[399163385,1766130658579,-500.0,0.00054794,120]
[399163386,1766130658588,-500.0,0.00054794,120]
[399163387,1766130658597,-500.0,0.00054794,120]
[399163388,1766130658608,-500.0,0.00054794,120]
[399163389,1766130658618,-505.75431547,0.00054794,120]
[399163390,1766130658629,-500.0,0.00054794,120]
[399163391,1766130658642,-501.38891641,0.00054794,120]
[399163392,1766130658653,-500.0,0.00054794,120]
[399163393,1766130658662,-500.0,0.00054794,120]
[399163394,1766130658672,-500.25987068,0.00054794,120]
[399163395,1766130658683,-500.6308986,0.00054794,120]
[399163396,1766130658692,-500.6346872,0.00054794,120]
[399163397,1766130658703,-501.33925054,0.00054794,120]
[399163398,1766130658712,-500.0,0.00054794,120]
[399163399,1766130658725,-500.0,0.00054794,120]
[399163400,1766130658741,-500.0,0.00054794,120]
[399163401,1766130658751,-500.0,0.00054794,120]
[399163402,1766130658760,-500.0,0.00054794,120]
[399163403,1766130658769,-500.0,0.00054794,120]
[399163404,1766130658780,-500.0,0.00054794,120]
[399163405,1766130658791,-503.24084972,0.00054794,120]
[399163406,1766130658801,-500.0,0.00054794,120]
[399163407,1766130658810,-500.0,0.00054794,120]
[399163408,1766130658819,-500.0,0.00054794,120]
[399163409,1766130658829,-500.0,0.00054794,120]
[399163410,1766130658839,-500.0,0.00054794,120]
[399163411,1766130658848,-500.0,0.00054794,120]
[399163412,1766130658857,-1084.45,0.00054794,120]
[399163413,1766130658866,-500.0,0.00054794,120]
[399163414,1766130658875,-500.0,0.00054794,120]
[399163415,1766130658884,-503.10598891,0.00054794,120]
[399163416,1766130658893,-506.24069582,0.00054794,120]
[399163417,1766130658902,-501.52268317,0.00054794,120]
[399163418,1766130658911,-500.0,0.00054794,120]
[399163419,1766130658920,-500.0,0.00054794,120]
[399163420,1766130658929,-500.0,0.00054794,120]
[399163421,1766130658938,-501.86357957,0.00054794,120]
[399163422,1766130658947,-500.0,0.00054794,120]
[399163423,1766130658956,-500.0,0.00054794,120]
[399163424,1766130658965,-898.43,0.00054794,120]
[399163425,1766130658974,-500.0,0.00054794,120]
[399163426,1766130658983,-500.0,0.00054794,120]
[399163427,1766130658992,-500.22533216,0.00054794,120]
[399163428,1766130659002,-500.0,0.00054794,120]
[399163429,1766130659011,-500.0,0.00054794,120]
[399163430,1766130659020,-500.0,0.00054794,120]
[399163431,1766130659029,-500.0,0.00054794,120]
[399163432,1766130659039,-500.0,0.00054794,120]
[399163433,1766130659048,-500.0,0.00054794,120]
[399163434,1766130659057,-502.06456932,0.00054794,120]
[399163435,1766130659067,-501.69779686,0.00054794,100]
[399163436,1766130659076,-500.0,0.00054794,120]
[399163437,1766130659086,-500.0,0.00054794,120]
[399163438,1766130659095,-500.0,0.00054794,120]
[399163439,1766130659104,-500.0,0.00054794,120]
[399163440,1766130659114,-500.0,0.00054794,120]
[399163441,1766130659123,-500.0,0.00054794,30]
[399163442,1766130659133,-841.83,0.00054794,120]
[399163443,1766130659142,-500.0,0.00054794,120]
[399163444,1766130659152,-500.0,0.00054794,120]
[399163445,1766130659161,-501.50446126,0.00054794,120]
[399163446,1766130659170,-500.0,0.00054794,120]
[399163447,1766130659180,-500.0,0.00054794,120]
[399163448,1766130659189,-502.08610945,0.00054794,120]
[399163449,1766130659198,-500.0,0.00054794,120]
[399163450,1766130659207,-500.0,0.00054794,120]
[399163451,1766130659217,-500.0,0.00054794,120]
[399163452,1766130659227,-500.0,0.00054794,120]
[399163453,1766130659236,-500.0,0.00054794,120]
[399163454,1766130659245,-500.0,0.00054794,120]
[399163455,1766130659255,-500.0,0.00054794,120]
[399163456,1766130659264,-500.0,0.00054794,120]
[399163457,1766130659274,-1049.58,0.00054794,120]
[399163458,1766130659283,-500.0,0.00054794,120]
[399163459,1766130659293,-500.0,0.00054794,120]
[399163460,1766130659302,-500.0,0.00054794,60]
[399163461,1766130659311,-500.0,0.00054794,120]
[399163462,1766130659321,-500.0,0.00054794,120]
[399163463,1766130659330,-500.0,0.00054794,120]
[399163464,1766130659340,-501.69868096,0.00054794,120]
[399163465,1766130659349,-500.0,0.00054794,120]
[399163466,1766130659358,-500.0,0.00054794,120]
[399163467,1766130659369,-5832.94,0.00054794,120]
[399163468,1766130659379,-500.59601861,0.00054794,120]
[399163469,1766130659388,-500.0,0.00054794,120]
[399163470,1766130659397,-500.0,0.00054794,120]
[399163471,1766130659407,-500.0,0.00054794,120]
[399163472,1766130659416,-500.0,0.00054794,120]
[399163473,1766130659426,-500.0,0.00054794,120]
[399163474,1766130659435,-500.0,0.00054794,120]
[399163475,1766130659444,-500.0,0.00054794,120]
[399163476,1766130659454,-500.0,0.00054794,120]
[399163477,1766130659465,-1123.95,0.00054794,120]
[399163478,1766130659475,-500.0,0.00054794,120]
[399163479,1766130659484,-500.0,0.00054794,120]
[399163480,1766130659494,-500.0,0.00054794,120]
[399163481,1766130659503,-500.0,0.00054794,120]
[399163482,1766130659513,-502.00071059,0.00054794,120]
[399163483,1766130659522,-500.0,0.00054794,120]
[399163484,1766130659531,-500.0,0.00054794,120]
[399163485,1766130659541,-507.78025362,0.00054794,120]
[399163486,1766130659550,-500.0,0.00054794,120]
[399163487,1766130659559,-500.0,0.00054794,120]
[399163488,1766130659568,-534.43015825,0.00054794,120]
[399163489,1766130659577,-502.10481202,0.00054794,120]
[399163490,1766130659587,-500.23729556,0.00054794,120]
[399163491,1766130659601,-500.0,0.00054794,120]
[399163492,1766130659609,-500.33111182,0.00054794,120]
[399163493,1766130659618,-500.0,0.00054794,120]
[399163494,1766130659626,-500.0,0.00054794,120]
[399163495,1766130659635,-500.0,0.00054794,120]
[399163496,1766130659649,-500.0,0.00054794,120]
[399163497,1766130659657,-500.0,0.00054794,120]
[399163498,1766130659666,-500.0,0.00054794,120]
[399163499,1766130659675,-500.0,0.00054794,120]
[399163500,1766130659683,-500.0,0.00054794,120]
[399163501,1766130659692,-500.0,0.00054794,120]
[399163502,1766130659700,-500.0,0.00054794,120]
[399163503,1766130659715,-500.0,0.00054794,120]
[399163504,1766130659725,-500.0,0.00054794,120]
[399163505,1766130659737,-500.0,0.00054794,120]
[399163506,1766130659746,-500.0,0.00054794,120]
[399163507,1766130659756,-500.0,0.00054794,120]
[399163508,1766130659766,-501.02660988,0.00054794,120]
[399163509,1766130659776,-799.69,0.00054794,21]
[399163510,1766130659785,-507.98675825,0.00054794,120]
[399163511,1766130659795,-241.73505242,0.00054794,120]
[399163512,1766130659805,-500.0,0.00054794,120]
[399163513,1766130659814,-565.42,0.00054794,120]
[399163514,1766130659823,-500.0,0.00054794,120]
[399163515,1766130659833,-500.0,0.00054794,120]
[399163516,1766130659847,-500.0,0.00054794,120]
[399163517,1766130659856,-500.0,0.00054794,120]
[399163518,1766130659865,-500.0,0.00054794,120]
[399163519,1766130659875,-500.0,0.00054794,120]
[399163520,1766130659884,-1745.65,0.00054794,120]
[399163521,1766130659893,-500.0,0.00054794,120]
[399163522,1766130659903,-500.0,0.00054794,120]
[399163523,1766130659912,-500.42724224,0.00054794,120]
[399163524,1766130659921,-500.0,0.00054794,120]
[399163525,1766130659930,-1000.0,0.00054794,120]
[399163526,1766130659940,-833.05,0.00054794,120]
[399163527,1766130659949,-500.0,0.00054794,120]
[399163528,1766130659959,-526.01719189,0.00054794,120]
[399163529,1766130659968,-500.0,0.00054794,120]
[399163530,1766130659978,-500.0,0.00054794,120]
[399163531,1766130659987,-501.72,0.00054794,120]
[399163532,1766130659997,-500.0,0.00054794,120]
[399163533,1766130660007,-500.0,0.00054794,120]
[399163534,1766130660016,-500.0,0.00054794,120]
[399163535,1766130660026,-500.0,0.00054794,120]
[399163536,1766130660036,-500.0,0.00054794,120]
[399163537,1766130660046,-500.0,0.00054794,60]
[399163538,1766130660057,-500.0,0.00054794,120]
[399163539,1766130660067,-500.0,0.00054794,120]
[399163540,1766130660077,-500.0,0.00054794,120]
[399163541,1766130660087,-861.29,0.00054794,120]
[399163542,1766130660096,-500.0,0.00054794,120]
[399163543,1766130660106,-500.0,0.00054794,120]
[399163544,1766130660115,-500.0,0.00054794,120]
[399163545,1766130660125,-551.62990201,0.00054794,120]
[399163546,1766130660136,-500.0,0.00054794,120]
[399163547,1766130660146,-500.0,0.00054794,120]
[399163548,1766130660157,-500.0,0.00054794,120]
[399163549,1766130660167,-500.0,0.00054794,120]
[399163550,1766130660177,-500.0,0.00054794,120]
[399163551,1766130660187,-500.0,0.00054794,120]
[399163552,1766130660197,-500.0,0.00054794,120]
[399163553,1766130660207,-500.0,0.00054794,120]
[399163554,1766130660217,-500.0,0.00054794,120]
[399163555,1766130660311,-501.24371184,0.00054794,120]
[399163556,1766130660322,-1000.0,0.00054794,2]
[399163557,1766130660333,-500.0,0.00054794,120]
[399163558,1766130660343,-500.0,0.00054794,120]
[399163559,1766130660353,-500.0,0.00054794,120]
[399163560,1766130660362,-500.0,0.00054794,30]
[399163561,1766130660372,-500.0,0.00054794,120]
[399163562,1766130660381,-4150.56,0.00054794,120]
[399163563,1766130660390,-500.0,0.00054794,120]
[399163564,1766130660400,-500.0,0.00054794,120]
[399163565,1766130660409,-500.0,0.00054794,120]
[399163566,1766130660419,-500.0,0.00054794,120]
[399163567,1766130660428,-500.92178392,0.00054794,14]
[399163568,1766130660438,-500.0,0.00054794,120]
[399163569,1766130660447,-500.0,0.00054794,120]
[399163570,1766130660457,-500.0,0.00054794,120]
[399163571,1766130660467,-500.0,0.00054794,120]
[399163572,1766130660477,-500.0,0.00054794,120]
[399163573,1766130660487,-500.0,0.00054794,120]
[399163574,1766130660497,-500.0,0.00054794,120]
[399163575,1766130660508,-500.0,0.00054794,120]
[399163576,1766130660518,-500.0,0.00054794,120]
[399163577,1766130660528,-501.75175866,0.00054794,120]
[399163578,1766130660538,-500.22490266,0.00054794,120]
[399163579,1766130660548,-1545.59,0.00054794,120]
[399163580,1766130660558,-601.18,0.00054794,120]
[399163581,1766130660568,-500.0,0.00054794,120]
[399163582,1766130660577,-500.51297454,0.00054794,120]
[399163583,1766130660587,-500.0,0.00054794,120]
[399163584,1766130660600,-500.0,0.00054794,120]
[399163585,1766130660610,-500.0,0.00054794,120]
[399163586,1766130660621,-537.71926498,0.00054794,120]
[399163587,1766130660633,-500.0,0.00054794,120]
[399163588,1766130660645,-500.0,0.00054794,120]
[399163589,1766130660655,-500.0,0.00054794,120]
[399163590,1766130660668,-500.0,0.00054794,120]
[399163591,1766130660679,-500.0,0.00054794,120]
[399163592,1766130660690,-500.0,0.00054794,120]
[399163593,1766130660700,-3273.78,0.00054794,120]
[399163594,1766130660711,-500.0,0.00054794,120]
[399163595,1766130660722,-2163.92,0.00054794,120]
[399163596,1766130660733,-500.0,0.00054794,120]
[399163597,1766130660744,-508.40703015,0.00054794,120]
[399163598,1766130660755,-500.0,0.00054794,120]
[399163599,1766130660765,-500.0,0.00054794,120]
[399163600,1766130660775,-501.84817927,0.00054794,120]
[399163601,1766130660784,-500.0,0.00054794,120]
[399163602,1766130660794,-500.0,0.00054794,120]
[399163603,1766130660803,-500.0,0.00054794,120]
[399163604,1766130660812,-615.54,0.00054794,120]
[399163605,1766130660822,-500.0,0.00054794,120]
[399163606,1766130660832,-500.0,0.00054794,120]
[399163607,1766130660841,-2441.66,0.00054794,3]
[399163608,1766130660851,-501.86276328,0.00054794,120]
[399163609,1766130660860,-5676.60791308,0.00054794,15]
[399163610,1766130660872,-489.87908336,0.00054794,120]
[399163611,1766130660883,-500.0,0.00054794,120]
[399163612,1766130660893,-500.0,0.00054794,120]
[399163613,1766130660903,-500.0,0.00054794,120]
[399163614,1766130660912,-500.0,0.00054794,120]
[399163615,1766130660922,-500.0,0.00054794,120]
[399163616,1766130660931,-500.0,0.00054794,120]
[399163617,1766130660940,-535.83,0.00054794,120]
[399163618,1766130660951,-500.0,0.00054794,120]
[399163619,1766130660960,-500.0,0.00054794,120]
[399163620,1766130660970,-500.0,0.00054794,120]
[399163621,1766130660979,-500.0,0.00054794,120]
[399163622,1766130660990,-500.0,0.00054794,120]
[399163623,1766130661003,-500.0,0.00054794,120]
[399163624,1766130661022,-500.0,0.00054794,120]
[399163625,1766130661032,-500.0,0.00054794,120]
[399163626,1766130661042,-167.47577168,0.00054794,120]
[399163627,1766130661053,-500.0,0.00054794,120]
[399163628,1766130661063,-970.05,0.00054794,120]
[399163629,1766130661072,-500.0,0.00054794,120]
[399163630,1766130661083,-500.0,0.00054794,120]
[399163631,1766130661092,-1307.75,0.00054794,120]
[399163632,1766130661102,-500.0,0.00054794,120]
[399163633,1766130661113,-500.0,0.00054794,120]
[399163634,1766130661122,-500.0,0.00054794,120]
[399163635,1766130661132,-500.0,0.00054794,120]
[399163636,1766130661142,-501.14286439,0.00054794,120]
[399163637,1766130661154,-529.54,0.00054794,120]
[399163638,1766130661174,-500.0,0.00054794,120]
[399163639,1766130661187,-500.99679226,0.00054794,120]
[399163640,1766130661198,-500.70796116,0.00054794,120]
[399163641,1766130661208,-500.0,0.00054794,120]
[399163642,1766130661217,-500.0,0.00054794,120]
[399163643,1766130661227,-501.02352537,0.00054794,120]
[399163644,1766130661236,-500.0,0.00054794,120]
[399163645,1766130661245,-500.0,0.00054794,120]
[399163646,1766130661254,-500.0,0.00054794,120]
[399163647,1766130661264,-500.0,0.00054794,120]
[399163648,1766130661274,-500.0,0.00054794,120]
[399163649,1766130661283,-500.0,0.00054794,120]
[399163650,1766130661292,-500.34613708,0.00054794,120]
[399163651,1766130661304,-500.53967056,0.00054794,120]
[399163652,1766130661313,-619.49,0.00054794,120]
[399163654,1766130661323,-500.0,0.00054794,120]
[399163655,1766130661333,-500.0,0.00054794,120]
[399163656,1766130661343,-638.91747828,0.00054794,120]
[399163657,1766130661352,-483.72584061,0.00054794,120]
[399163658,1766130661362,-500.0,0.00054794,120]
[399163659,1766130661372,-500.0,0.00054794,120]